Department Family,Entity,Payment Date,Expense Type,Expense Area,Supplier,Transaction Number,Amount,Invoice Description,Postal Code,Expenditure Type
Food Standards Agency,Food Standards Agency,15/09/2015,Rent & management charges - AVH,Security & Estates,D T Z,412326,"1,513,314.85",AVIATION HOUSE Q2 RENT,B4 6AJ,Admin
Food Standards Agency,Food Standards Agency,15/09/2015,Rent & management charges - AVH,Security & Estates,D T Z,412326,"302,662.97",AVIATION HOUSE Q2 RENT VAT,B4 6AJ,Admin
Food Standards Agency,Food Standards Agency,11/09/2015,Programme Evidence & Research Expenditure,Novel Foods & Allergens,Kings College London,RGI15160090,"209,125.00","PO 417636, RANDOMISED CONTROLLED TRIAL OF EARLY INTRODUCTION OF ALLERGENIC FOOD",SE1 3QD,Programme
Food Standards Agency,Food Standards Agency,15/09/2015,Civil service pension administration,Finance Director & Branch,London Pensions Fund Authority,FSASEP15,"162,166.00",PO 422045 SEPTEMBER 15 FUND VALUALTION 2015,EC3N 4LP,Admin
Food Standards Agency,Food Standards Agency,29/09/2015,Project Programme expenditure,Animal Feed,Trading Standards Institute (GRANTS),ERS-42611-52957,"122,227.00",Receipt Invoice automatically created on 31-AUG-15,SS15 6TH,Programme
Food Standards Agency,Food Standards Agency,07/09/2015,Rates/contrib in lieu of rates,Security & Estates,London Borough Of Camden,30041510465200AB,"104,652.00",BASEMENT - PART 4TH FLOOR AVH BUSINESS RARES - SEPT 2015,WC1H 8NH,Admin
Food Standards Agency,Food Standards Agency,15/09/2015,Project Programme expenditure,Food Hygiene Policy Branch,Natural Environment Research Council (NERC),NERC15921,"83,333.00","PO 422649, FSA 2015/16 CONTRIBUTION TO NERC",SN2 1EU,Programme
Food Standards Agency,Food Standards Agency,29/09/2015,Project Programme expenditure,Foodborne Disease & Campylobacter,Public Health England,6166703,"82,216.00",PO 416894 A MICROBIOLOGY SURVEY OF CAMPYLOBACTER CONTAMINATION FS241044,NW9 5EQ,Programme
Food Standards Agency,Food Standards Agency,21/09/2015,Project Programme expenditure,Radiological & Residues,C E F A S,8005153,"67,938.15","PO 418529, INVOICE FOR THE PERIOD AUGUST 2015",NR33 0HT,Programme
Food Standards Agency,Food Standards Agency,01/09/2015,Project Programme expenditure,Consumer Protection & Commercial Support,Animal and Plant Health Agency,5000069385,"55,409.85","PO 422255, LABORATORY SURVEILLANCE, APRIL 2014 TO MARCH 2015",KT15 3NB,Programme
Food Standards Agency,Food Standards Agency,02/09/2015,IT Development projects,IT Service Delivery,Capita Secure Information Solutions Ltd,6060002607,"44,921.57",CHARGES RELATING TO THE SETTING UP & TRANSFER OF SERVICES TO FOOD STANDARDS SCOTLAND,SN14 0TW,Admin
Food Standards Agency,Food Standards Agency,02/09/2015,Mobile phone charges,IT Service Delivery,Vodafone Ltd,77231387,"39,420.20",VOADFONE MOBILE CONTRACTS - QUARTERLY CHARGES,RG14 5FF,Admin
Food Standards Agency,Food Standards Agency,29/09/2015,Programme Evidence & Research Expenditure,Radiological & Residues,C E F A S,8005162,"36,803.00",PO 414854 Q2 YEAR 3 AS PER SCHEDULE,NR33 0HT,Programme
Food Standards Agency,Food Standards Agency,02/09/2015,Rent & management charges - Outside London,Security & Estates,Defra C/o Capita,1002548552,"36,333.54",FOSS HOUSE - JULY RENT,EC2V 7NQ,Admin
Food Standards Agency,Food Standards Agency,15/09/2015,Utilities,Security & Estates,E D F Energy,774400,"35,013.96",AVH ELECTRICITY CHARGES - AUG 2015,EX1 3UT,Admin
Food Standards Agency,Food Standards Agency,15/09/2015,Utilities,Security & Estates,Department of Energy & Climate Change,110915,"33,078.80",AVH ELECTRICITY CHARGES - VAT - AUG 2015,SW1A 2AW,Admin
Food Standards Agency,Food Standards Agency,07/09/2015,Staff training: Corporate Training,Centrally Managed,Liaison Vat Ltd,101271,"28,990.90",PO 422912 COS REVIEW 2014/15,WR5 1BW,Admin
Food Standards Agency,Food Standards Agency,01/09/2015,Project Programme expenditure,LAALD HoD & Support,C E F A S,8005079,"26,929.96","PO 422543, 422336 PROJECT C5674 C5666 PHYTOPLANKTON ANALYSIS JULY",NR33 0HT,Programme
Food Standards Agency,Food Standards Agency,15/09/2015,Project Programme expenditure,Comms Directors Office,GovDelivery. Inc,5464,"26,799.00",PO 419485 COVERAGE DATES 24.09.15 - 23.09.16 ANNUAL HOSTING AND MAINTENANCE FEE,RH10 1JH,Programme
Food Standards Agency,Food Standards Agency,29/09/2015,Project Programme expenditure,LAALD HoD & Support,C E F A S,8005165,"23,963.10","PO 422543 & 422336,  C5666 PHYTOPLANKTON ANALYSIS AUG",NR33 0HT,Programme
Food Standards Agency,Food Standards Agency,01/09/2015,Project Programme expenditure,LAALD HoD & Support,C E F A S,8005079,"22,526.56","PO 422543, 422336 PROJECT C5674 C5666 PHYTOPLANKTON ANALYSIS JULY",NR33 0HT,Programme
Food Standards Agency,Food Standards Agency,29/09/2015,Project Programme expenditure,LAALD HoD & Support,C E F A S,8005165,"22,526.56","PO 422543 & 422336,  C5666 PHYTOPLANKTON ANALYSIS AUG",NR33 0HT,Programme
Food Standards Agency,Food Standards Agency,11/09/2015,ASD support services,Finance Director & Branch,Shared Services Connected Ltd,100001467,"22,044.61",PO 419996 FIXED MONTHLY CHARGE SEPT 15,HP2 7AH,Admin
Food Standards Agency,Food Standards Agency,01/09/2015,Project Programme expenditure,LAALD HoD & Support,C E F A S,8005079,"19,677.62","PO 422543, 422336 PROJECT C5674 C5666 PHYTOPLANKTON ANALYSIS JULY",NR33 0HT,Programme
Food Standards Agency,Food Standards Agency,29/09/2015,Project Programme expenditure,LAALD HoD & Support,C E F A S,8005165,"19,677.62","PO 422543 & 422336,  C5666 PHYTOPLANKTON ANALYSIS AUG",NR33 0HT,Programme
Food Standards Agency,Food Standards Agency,01/09/2015,Project Programme expenditure,LAALD HoD & Support,C E F A S,8005079,"17,767.05","PO 422543, 422336 PROJECT C5674 C5666 PHYTOPLANKTON ANALYSIS JULY",NR33 0HT,Programme
Food Standards Agency,Food Standards Agency,29/09/2015,Project Programme expenditure,LAALD HoD & Support,C E F A S,8005165,"17,767.05","PO 422543 & 422336,  C5666 PHYTOPLANKTON ANALYSIS AUG",NR33 0HT,Programme
Food Standards Agency,Food Standards Agency,01/09/2015,Programme Evidence & Research Expenditure,Consumer Protection & Commercial Support,Animal and Plant Health Agency,5000069385,"15,912.00","PO 422255, LABORATORY SURVEILLANCE, APRIL 2014 TO MARCH 2015",KT15 3NB,Programme
Food Standards Agency,Food Standards Agency,07/09/2015,Project Programme expenditure,Chief Scientist,Technology Strategy Board,1259,"13,599.01","PO 418856,  CO - FUNDING FOR QTR 1 2015/16",SN2 1UE,Programme
Food Standards Agency,Food Standards Agency,01/09/2015,Project Programme expenditure,LAALD HoD & Support,C E F A S,8005079,"12,437.00","PO 422543, 422336 PROJECT C5674 C5666 PHYTOPLANKTON ANALYSIS JULY",NR33 0HT,Programme
Food Standards Agency,Food Standards Agency,29/09/2015,Project Programme expenditure,LAALD HoD & Support,C E F A S,8005165,"12,437.00","PO 422543 & 422336,  C5666 PHYTOPLANKTON ANALYSIS AUG",NR33 0HT,Programme
Food Standards Agency,Food Standards Agency,02/09/2015,Rates/contrib in lieu of rates,Security & Estates,Defra C/o Capita,1002548552,"10,414.69",FOSS HOUSE - JULY RATES,EC2V 7NQ,Admin
Food Standards Agency,Food Standards Agency,23/09/2015,Fixed Assets Additions,Security & Estates,Interior Motives International Limited,9584,"9,100.00",REFURB OF 3RD FLR MTG RM - PO422579 COSTS RECHARGED TO GDS,EC4R 2RA,Capital
Food Standards Agency,Food Standards Agency,02/09/2015,Mobile phone charges,IT Service Delivery,Vodafone Ltd,77231387,"7,884.04",VOADFONE MOBILE CONTRACTS - QUARTERLY CHARGES,RG14 5FF,Admin
Food Standards Agency,Food Standards Agency,15/09/2015,Utilities,Security & Estates,E D F Energy,774400,"7,002.79",2014-15 CRC PHASE 2 ALLOWANCE,EX1 3UT,Admin
Food Standards Agency,Food Standards Agency,07/09/2015,Project Programme expenditure,Chief Scientist,Technology Strategy Board,1259,"6,501.74","PO 418856,  CO - FUNDING FOR QTR 1 2015/16",SN2 1UE,Programme
Food Standards Agency,Food Standards Agency,23/09/2015,Fixed Assets Additions,Security & Estates,Interior Motives International Limited,9584,"6,442.50",REFURB OF 3RD FLR MTG RM - PO422579 COSTS RECHARGED TO GDS,EC4R 2RA,Capital
Food Standards Agency,Food Standards Agency,23/09/2015,Fixed Assets Additions,Security & Estates,Interior Motives International Limited,9584,"5,572.20",REFURB OF 3RD FLR MTG RM - PO422579 COSTS RECHARGED TO GDS,EC4R 2RA,Capital
Food Standards Agency,Food Standards Agency,07/09/2015,Project Programme expenditure,Chief Scientist,Technology Strategy Board,1259,"5,202.30","PO 418856,  CO - FUNDING FOR QTR 1 2015/16",SN2 1UE,Programme
Food Standards Agency,Food Standards Agency,11/09/2015,ASD support services,Finance Director & Branch,Shared Services Connected Ltd,100001467,"4,408.92",PO 419996 FIXED MONTHLY CHARGE SEPT 15,HP2 7AH,Admin
Food Standards Agency,Food Standards Agency,23/09/2015,Fixed Assets Additions,Security & Estates,Interior Motives International Limited,9584,"4,165.21",REFURB OF 3RD FLR MTG RM - PO422579 COSTS RECHARGED TO GDS,EC4R 2RA,Capital
Food Standards Agency,Food Standards Agency,25/09/2015,Travel UK ,Operations Assurance,Redfern Travel Ltd,433,"3,265.10",REDFERN TRAVEL INVOICE WK 38,BD1 3AZ,Programme
Food Standards Agency,Food Standards Agency,02/09/2015,Utilities,Security & Estates,Defra C/o Capita,1002548552,"2,624.96",FOSS HOUSE - JULY ELECTRICITY,EC2V 7NQ,Admin
Food Standards Agency,Food Standards Agency,21/09/2015,Travel UK ,Operations Assurance,Redfern Travel Ltd,401,"2,552.48",REDFERN TRAVEL INVOICE WK 37,BD1 3AZ,Programme
Food Standards Agency,Food Standards Agency,01/09/2015,Project Programme expenditure,LAALD HoD & Support,C E F A S,8005079,"2,247.61","PO 422543, 422336 PROJECT C5674 C5666 PHYTOPLANKTON ANALYSIS JULY",NR33 0HT,Programme
Food Standards Agency,Food Standards Agency,23/09/2015,Fixed Assets Additions,Security & Estates,Interior Motives International Limited,9584,"2,000.00",REFURB OF 3RD FLR MTG RM - PO422579 COSTS RECHARGED TO GDS,EC4R 2RA,Capital
Food Standards Agency,Food Standards Agency,23/09/2015,Fixed Assets Additions,Security & Estates,Interior Motives International Limited,9584,"1,940.00",REFURB OF 3RD FLR MTG RM - PO422579 COSTS RECHARGED TO GDS,EC4R 2RA,Capital
Food Standards Agency,Food Standards Agency,23/09/2015,Fixed Assets Additions,Security & Estates,Interior Motives International Limited,9584,"1,820.00",REFURB OF 3RD FLR MTG RM - PO422579 COSTS RECHARGED TO GDS,EC4R 2RA,Capital
Food Standards Agency,Food Standards Agency,21/09/2015,Travel UK ,Operational Delivery,Redfern Travel Ltd,401,"1,760.27",REDFERN TRAVEL INVOICE WK 37,BD1 3AZ,Programme
Food Standards Agency,Food Standards Agency,25/09/2015,Travel UK ,Operational Delivery,Redfern Travel Ltd,433,"1,685.99",REDFERN TRAVEL INVOICE WK 38,BD1 3AZ,Programme
Food Standards Agency,Food Standards Agency,25/09/2015,Travel UK ,Operations Local Delivery ,Redfern Travel Ltd,433,"1,593.12",REDFERN TRAVEL INVOICE WK 38,BD1 3AZ,Admin
Food Standards Agency,Food Standards Agency,23/09/2015,Fixed Assets Additions,Security & Estates,Interior Motives International Limited,9584,"1,497.50",REFURB OF 3RD FLR MTG RM - PO422579 COSTS RECHARGED TO GDS,EC4R 2RA,Capital
Food Standards Agency,Food Standards Agency,25/09/2015,Subsistence UK,Operations Local Delivery ,Redfern Travel Ltd,433,"1,358.47",REDFERN TRAVEL INVOICE WK 38,BD1 3AZ,Admin
Food Standards Agency,Food Standards Agency,23/09/2015,Fixed Assets Additions,Security & Estates,Interior Motives International Limited,9584,"1,288.50",REFURB OF 3RD FLR MTG RM - PO422579 COSTS RECHARGED TO GDS,EC4R 2RA,Capital
Food Standards Agency,Food Standards Agency,21/09/2015,Travel UK ,Finance Director & Branch,Redfern Travel Ltd,401,"1,257.78",REDFERN TRAVEL INVOICE WK 37,BD1 3AZ,Admin
Food Standards Agency,Food Standards Agency,23/09/2015,Fixed Assets Additions,Security & Estates,Interior Motives International Limited,9584,"1,114.44",REFURB OF 3RD FLR MTG RM - PO422579 COSTS RECHARGED TO GDS,EC4R 2RA,Capital
Food Standards Agency,Food Standards Agency,21/09/2015,Travel UK ,Operations Local Delivery ,Redfern Travel Ltd,401,"1,023.04",REDFERN TRAVEL INVOICE WK 37,BD1 3AZ,Admin
Food Standards Agency,Food Standards Agency,21/09/2015,Travel UK ,Regulatory & International,Redfern Travel Ltd,401,984.88,REDFERN TRAVEL INVOICE WK 37,BD1 3AZ,Admin
Food Standards Agency,Food Standards Agency,21/09/2015,Travel UK ,Consumer Protection & Commercial Support,Redfern Travel Ltd,401,978.37,REDFERN TRAVEL INVOICE WK 37,BD1 3AZ,Admin
Food Standards Agency,Food Standards Agency,25/09/2015,Subsistence UK,Operational Delivery,Redfern Travel Ltd,433,897.75,REDFERN TRAVEL INVOICE WK 38,BD1 3AZ,Programme
Food Standards Agency,Food Standards Agency,23/09/2015,Fixed Assets Additions,Security & Estates,Interior Motives International Limited,9584,892.98,REFURB OF 3RD FLR MTG RM - PO422579 COSTS RECHARGED TO GDS,EC4R 2RA,Capital
Food Standards Agency,Food Standards Agency,21/09/2015,Subsistence UK,Operations Assurance,Redfern Travel Ltd,401,875.37,REDFERN TRAVEL INVOICE WK 37,BD1 3AZ,Programme
Food Standards Agency,Food Standards Agency,25/09/2015,Travel UK ,Consumer Protection & Commercial Support,Redfern Travel Ltd,433,848.49,REDFERN TRAVEL INVOICE WK 38,BD1 3AZ,Admin
Food Standards Agency,Food Standards Agency,25/09/2015,Subsistence UK,Operations Assurance,Redfern Travel Ltd,433,848.12,REDFERN TRAVEL INVOICE WK 38,BD1 3AZ,Programme
Food Standards Agency,Food Standards Agency,23/09/2015,Fixed Assets Additions,Security & Estates,Interior Motives International Limited,9584,833.04,REFURB OF 3RD FLR MTG RM - PO422579 COSTS RECHARGED TO GDS,EC4R 2RA,Capital
Food Standards Agency,Food Standards Agency,25/09/2015,Travel UK ,Organisational Development,Redfern Travel Ltd,433,809.37,REDFERN TRAVEL INVOICE WK 38,BD1 3AZ,Admin
Food Standards Agency,Food Standards Agency,21/09/2015,Subsistence UK,Chair & Deputy Chair,Redfern Travel Ltd,401,785.46,REDFERN TRAVEL INVOICE WK 37,BD1 3AZ,Admin
Food Standards Agency,Food Standards Agency,21/09/2015,Subsistence UK,Planning and Performance,Redfern Travel Ltd,401,753.92,REDFERN TRAVEL INVOICE WK 37,BD1 3AZ,Admin
Food Standards Agency,Food Standards Agency,25/09/2015,Travel UK ,Area 4 North East England - Cluster 42,Redfern Travel Ltd,433,751.56,REDFERN TRAVEL INVOICE WK 38,BD1 3AZ,Programme
Food Standards Agency,Food Standards Agency,21/09/2015,Subsistence UK,Consumer Protection & Commercial Support,Redfern Travel Ltd,401,735.34,REDFERN TRAVEL INVOICE WK 37,BD1 3AZ,Admin
Food Standards Agency,Food Standards Agency,25/09/2015,Travel UK ,Planning and Performance,Redfern Travel Ltd,433,615.7,REDFERN TRAVEL INVOICE WK 38,BD1 3AZ,Admin
Food Standards Agency,Food Standards Agency,25/09/2015,Travel UK ,Contaminants Policy & Strategy Unit,Redfern Travel Ltd,433,608.04,REDFERN TRAVEL INVOICE WK 38,BD1 3AZ,Admin
Food Standards Agency,Food Standards Agency,21/09/2015,Travel UK ,Organisational Development,Redfern Travel Ltd,401,594.74,REDFERN TRAVEL INVOICE WK 37,BD1 3AZ,Admin
Food Standards Agency,Food Standards Agency,21/09/2015,Subsistence UK,Operations Assurance - Admin,Redfern Travel Ltd,401,580.3,REDFERN TRAVEL INVOICE WK 37,BD1 3AZ,Admin
Food Standards Agency,Food Standards Agency,25/09/2015,Subsistence UK,Chief Scientist,Redfern Travel Ltd,433,570.2,REDFERN TRAVEL INVOICE WK 38,BD1 3AZ,Admin
Food Standards Agency,Food Standards Agency,25/09/2015,Subsistence UK,Operations Assurance - Admin,Redfern Travel Ltd,433,567.81,REDFERN TRAVEL INVOICE WK 38,BD1 3AZ,Admin
Food Standards Agency,Food Standards Agency,21/09/2015,Travel UK ,Planning and Performance,Redfern Travel Ltd,401,557.84,REDFERN TRAVEL INVOICE WK 37,BD1 3AZ,Admin
Food Standards Agency,Food Standards Agency,02/09/2015,Utilities,Security & Estates,Defra C/o Capita,1002548552,551.46,FOSS HOUSE - JULY GAS,EC2V 7NQ,Admin
Food Standards Agency,Food Standards Agency,21/09/2015,Travel UK ,Chief Scientist,Redfern Travel Ltd,401,550.34,REDFERN TRAVEL INVOICE WK 37,BD1 3AZ,Admin
Food Standards Agency,Food Standards Agency,25/09/2015,Travel UK ,Comms Directors Office,Redfern Travel Ltd,433,539,REDFERN TRAVEL INVOICE WK 38,BD1 3AZ,Admin
Food Standards Agency,Food Standards Agency,25/09/2015,Travel UK ,Finance Director & Branch,Redfern Travel Ltd,433,535.21,REDFERN TRAVEL INVOICE WK 38,BD1 3AZ,Admin
Food Standards Agency,Food Standards Agency,25/09/2015,Travel UK ,Operations Assurance - Admin,Redfern Travel Ltd,433,517.11,REDFERN TRAVEL INVOICE WK 38,BD1 3AZ,Admin
Food Standards Agency,Food Standards Agency,25/09/2015,Subsistence UK,Internal Audit,Redfern Travel Ltd,433,504.46,REDFERN TRAVEL INVOICE WK 38,BD1 3AZ,Admin
Food Standards Agency,Food Standards Agency,21/09/2015,Travel UK ,Contaminants HoD,Redfern Travel Ltd,401,494.05,REDFERN TRAVEL INVOICE WK 37,BD1 3AZ,Admin
Food Standards Agency,Food Standards Agency,25/09/2015,Travel UK ,Area 6 South East England - Cluster 61,Redfern Travel Ltd,433,484.99,REDFERN TRAVEL INVOICE WK 38,BD1 3AZ,Programme
Food Standards Agency,Food Standards Agency,21/09/2015,Travel UK ,Non Meat Field Ops,Redfern Travel Ltd,401,482.5,REDFERN TRAVEL INVOICE WK 37,BD1 3AZ,Programme
Food Standards Agency,Food Standards Agency,23/09/2015,Fixed Assets Additions,Security & Estates,Interior Motives International Limited,9584,480,REFURB OF 3RD FLR MTG RM - PO422579 COSTS RECHARGED TO GDS,EC4R 2RA,Capital
Food Standards Agency,Food Standards Agency,21/09/2015,Travel UK ,Area 3 North West England - Cluster 32,Redfern Travel Ltd,401,453.08,REDFERN TRAVEL INVOICE WK 37,BD1 3AZ,Programme
Food Standards Agency,Food Standards Agency,25/09/2015,Travel UK ,Regulatory & International,Redfern Travel Ltd,433,421.26,REDFERN TRAVEL INVOICE WK 38,BD1 3AZ,Admin
Food Standards Agency,Food Standards Agency,25/09/2015,Travel UK ,Food Hygiene Policy Branch,Redfern Travel Ltd,433,413.03,REDFERN TRAVEL INVOICE WK 38,BD1 3AZ,Admin
Food Standards Agency,Food Standards Agency,23/09/2015,Fixed Assets Additions,Security & Estates,Interior Motives International Limited,9584,400,REFURB OF 3RD FLR MTG RM - PO422579 COSTS RECHARGED TO GDS,EC4R 2RA,Capital
Food Standards Agency,Food Standards Agency,21/09/2015,Travel UK ,Additives,Redfern Travel Ltd,401,391.75,REDFERN TRAVEL INVOICE WK 37,BD1 3AZ,Admin
Food Standards Agency,Food Standards Agency,21/09/2015,Travel UK ,Area 6 South East England - Cluster 63,Redfern Travel Ltd,401,390.13,REDFERN TRAVEL INVOICE WK 37,BD1 3AZ,Programme
Food Standards Agency,Food Standards Agency,23/09/2015,Fixed Assets Additions,Security & Estates,Interior Motives International Limited,9584,388,REFURB OF 3RD FLR MTG RM - PO422579 COSTS RECHARGED TO GDS,EC4R 2RA,Capital
Food Standards Agency,Food Standards Agency,21/09/2015,Travel UK ,Area 2 Wales - Cluster 23,Redfern Travel Ltd,401,365.79,REDFERN TRAVEL INVOICE WK 37,BD1 3AZ,Programme
Food Standards Agency,Food Standards Agency,21/09/2015,Travel UK ,Internal Audit,Redfern Travel Ltd,401,362.43,REDFERN TRAVEL INVOICE WK 37,BD1 3AZ,Admin
Food Standards Agency,Food Standards Agency,21/09/2015,Subsistence UK,Operational Delivery,Redfern Travel Ltd,401,358.39,REDFERN TRAVEL INVOICE WK 37,BD1 3AZ,Programme
Food Standards Agency,Food Standards Agency,21/09/2015,Travel UK ,IT Service Delivery,Redfern Travel Ltd,401,358.27,WEEKLY TRAVEL INVOICE,BD1 3AZ,Admin
Food Standards Agency,Food Standards Agency,25/09/2015,Travel UK ,Area 2 Wales - Cluster 23,Redfern Travel Ltd,433,358.14,REDFERN TRAVEL INVOICE WK 38,BD1 3AZ,Programme
Food Standards Agency,Food Standards Agency,21/09/2015,Subsistence UK,Security & Estates,Redfern Travel Ltd,401,357.38,CONSOLIDATED PAYMENT  - SES SUBSISTENCE COSTS WK 37,BD1 3AZ,Admin
Food Standards Agency,Food Standards Agency,25/09/2015,Travel UK ,Internal Audit,Redfern Travel Ltd,433,347.94,REDFERN TRAVEL INVOICE WK 38,BD1 3AZ,Admin
Food Standards Agency,Food Standards Agency,23/09/2015,Fixed Assets Additions,Security & Estates,Interior Motives International Limited,9584,345,REFURB OF 3RD FLR MTG RM - PO422579 COSTS RECHARGED TO GDS,EC4R 2RA,Capital
Food Standards Agency,Food Standards Agency,25/09/2015,Travel UK ,Chemical Risk Assessment Unit,Redfern Travel Ltd,433,339.22,REDFERN TRAVEL INVOICE WK 38,BD1 3AZ,Admin
Food Standards Agency,Food Standards Agency,25/09/2015,Subsistence EC,Chemical Risk Assessment Unit,Redfern Travel Ltd,433,332.55,REDFERN TRAVEL INVOICE WK 38,BD1 3AZ,Admin
Food Standards Agency,Food Standards Agency,21/09/2015,Travel UK ,EU Regulatory Reform Branch,Redfern Travel Ltd,401,330.11,REDFERN TRAVEL INVOICE WK 37,BD1 3AZ,Admin
Food Standards Agency,Food Standards Agency,25/09/2015,Travel UK ,Area 6 South East England - Cluster 63,Redfern Travel Ltd,433,319.54,REDFERN TRAVEL INVOICE WK 38,BD1 3AZ,Programme
Food Standards Agency,Food Standards Agency,25/09/2015,Travel UK ,Chair & Deputy Chair,Redfern Travel Ltd,433,315.74,REDFERN TRAVEL INVOICE WK 38,BD1 3AZ,Admin
Food Standards Agency,Food Standards Agency,21/09/2015,Subsistence UK,Finance Director & Branch,Redfern Travel Ltd,401,314.07,REDFERN TRAVEL INVOICE WK 37,BD1 3AZ,Admin
Food Standards Agency,Food Standards Agency,21/09/2015,Travel UK ,"Employee Relations, Systems and Data",Redfern Travel Ltd,401,309.03,REDFERN TRAVEL INVOICE WK 37,BD1 3AZ,Admin
Food Standards Agency,Food Standards Agency,23/09/2015,Fixed Assets Additions,Security & Estates,Interior Motives International Limited,9584,299.5,REFURB OF 3RD FLR MTG RM - PO422579 COSTS RECHARGED TO GDS,EC4R 2RA,Capital
Food Standards Agency,Food Standards Agency,21/09/2015,Travel UK ,IT Information & Knowledge Management,Redfern Travel Ltd,401,296.18,REDFERN TRAVEL INVOICE WK 37,BD1 3AZ,Admin
Food Standards Agency,Food Standards Agency,25/09/2015,Subsistence UK,Planning and Performance,Redfern Travel Ltd,433,293.4,REDFERN TRAVEL INVOICE WK 38,BD1 3AZ,Admin
Food Standards Agency,Food Standards Agency,25/09/2015,Travel UK ,Information Strategy & Implementation Programme,Redfern Travel Ltd,433,287.04,REDFERN TRAVEL INVOICE WK 38,BD1 3AZ,Admin
Food Standards Agency,Food Standards Agency,21/09/2015,Travel UK ,Chair & Deputy Chair,Redfern Travel Ltd,401,286.64,REDFERN TRAVEL INVOICE WK 37,BD1 3AZ,Admin
Food Standards Agency,Food Standards Agency,21/09/2015,Travel UK ,Procurement,Redfern Travel Ltd,401,277.94,REDFERN TRAVEL INVOICE WK 37,BD1 3AZ,Admin
Food Standards Agency,Food Standards Agency,25/09/2015,Travel UK ,Non Meat Field Ops,Redfern Travel Ltd,433,256.98,REDFERN TRAVEL INVOICE WK 38,BD1 3AZ,Programme
Food Standards Agency,Food Standards Agency,21/09/2015,Subsistence UK,Chief Executive & Private Office,Redfern Travel Ltd,401,252.18,REDFERN TRAVEL INVOICE WK 37,BD1 3AZ,Admin
Food Standards Agency,Food Standards Agency,25/09/2015,Travel UK ,Legal Branch A & Investigations,Redfern Travel Ltd,433,248.73,REDFERN TRAVEL INVOICE WK 38,BD1 3AZ,Admin
Food Standards Agency,Food Standards Agency,21/09/2015,Travel UK ,Directorate Support Unit,Redfern Travel Ltd,401,247.95,REDFERN TRAVEL INVOICE WK 37,BD1 3AZ,Admin
Food Standards Agency,Food Standards Agency,21/09/2015,Travel UK ,Area 6 South East England - Cluster 62,Redfern Travel Ltd,401,245.54,REDFERN TRAVEL INVOICE WK 37,BD1 3AZ,Programme
Food Standards Agency,Food Standards Agency,21/09/2015,Travel UK ,Area 4 North East England - Cluster 41,Redfern Travel Ltd,401,227.71,REDFERN TRAVEL INVOICE WK 37,BD1 3AZ,Programme
Food Standards Agency,Food Standards Agency,21/09/2015,Subsistence UK,Directorate Support Unit,Redfern Travel Ltd,401,227.51,REDFERN TRAVEL INVOICE WK 37,BD1 3AZ,Admin
Food Standards Agency,Food Standards Agency,21/09/2015,Subsistence UK,Regulatory & International,Redfern Travel Ltd,401,215.08,REDFERN TRAVEL INVOICE WK 37,BD1 3AZ,Admin
Food Standards Agency,Food Standards Agency,25/09/2015,Travel UK ,Area 6 South East England - Cluster 64,Redfern Travel Ltd,433,208.55,REDFERN TRAVEL INVOICE WK 38,BD1 3AZ,Programme
Food Standards Agency,Food Standards Agency,25/09/2015,Travel UK ,Area 2 Wales - Cluster 21,Redfern Travel Ltd,433,205.55,REDFERN TRAVEL INVOICE WK 38,BD1 3AZ,Programme
Food Standards Agency,Food Standards Agency,21/09/2015,Travel UK ,Analysis & Research Branch,Redfern Travel Ltd,401,198.82,REDFERN TRAVEL INVOICE WK 37,BD1 3AZ,Admin
Food Standards Agency,Food Standards Agency,25/09/2015,Travel UK ,IT Information & Knowledge Management,Redfern Travel Ltd,433,198.8,REDFERN TRAVEL INVOICE WK 38,BD1 3AZ,Admin
Food Standards Agency,Food Standards Agency,21/09/2015,Travel UK ,Area 3 North West England - Cluster 35,Redfern Travel Ltd,401,197.59,REDFERN TRAVEL INVOICE WK 37,BD1 3AZ,Programme
Food Standards Agency,Food Standards Agency,25/09/2015,International Travel,Contaminants Policy & Strategy Unit,Redfern Travel Ltd,433,194.87,REDFERN TRAVEL INVOICE WK 38,BD1 3AZ,Admin
Food Standards Agency,Food Standards Agency,25/09/2015,Subsistence UK,Regulatory & International,Redfern Travel Ltd,433,194.56,REDFERN TRAVEL INVOICE WK 38,BD1 3AZ,Admin
Food Standards Agency,Food Standards Agency,21/09/2015,Travel UK ,Chief Executive & Private Office,Redfern Travel Ltd,401,184.81,REDFERN TRAVEL INVOICE WK 37,BD1 3AZ,Admin
Food Standards Agency,Food Standards Agency,23/09/2015,Fixed Assets Additions,Security & Estates,Interior Motives International Limited,9584,178.6,REFURB OF 3RD FLR MTG RM - PO422579 COSTS RECHARGED TO GDS,EC4R 2RA,Capital
Food Standards Agency,Food Standards Agency,25/09/2015,Travel UK ,Approvals & Veterinary Advice,Redfern Travel Ltd,433,178.5,REDFERN TRAVEL INVOICE WK 38,BD1 3AZ,Programme
Food Standards Agency,Food Standards Agency,25/09/2015,Subsistence EC,Internal Audit,Redfern Travel Ltd,433,176.96,REDFERN TRAVEL INVOICE WK 38,BD1 3AZ,Admin
Food Standards Agency,Food Standards Agency,25/09/2015,Travel UK ,Area 6 South East England - Cluster 62,Redfern Travel Ltd,433,176.37,REDFERN TRAVEL INVOICE WK 38,BD1 3AZ,Programme
Food Standards Agency,Food Standards Agency,21/09/2015,Travel UK ,Area 4 North East England - Cluster 45,Redfern Travel Ltd,401,168.7,REDFERN TRAVEL INVOICE WK 37,BD1 3AZ,Programme
Food Standards Agency,Food Standards Agency,25/09/2015,Travel UK ,Chief Scientist,Redfern Travel Ltd,433,166.15,REDFERN TRAVEL INVOICE WK 38,BD1 3AZ,Admin
Food Standards Agency,Food Standards Agency,25/09/2015,Travel UK ,Area 5 South West England - Cluster 53,Redfern Travel Ltd,433,164.84,REDFERN TRAVEL INVOICE WK 38,BD1 3AZ,Programme
Food Standards Agency,Food Standards Agency,25/09/2015,Travel UK ,Analysis & Research Branch,Redfern Travel Ltd,433,164.32,REDFERN TRAVEL INVOICE WK 38,BD1 3AZ,Admin
Food Standards Agency,Food Standards Agency,02/09/2015,Utilities,Security & Estates,Defra C/o Capita,1002548552,163.61,FOSS HOUSE - JULY WATER,EC2V 7NQ,Admin
Food Standards Agency,Food Standards Agency,21/09/2015,Travel UK ,Area 3 North West England - Cluster 34,Redfern Travel Ltd,401,163.11,REDFERN TRAVEL INVOICE WK 37,BD1 3AZ,Programme
Food Standards Agency,Food Standards Agency,21/09/2015,Subsistence UK,Operations Local Delivery ,Redfern Travel Ltd,401,147.93,REDFERN TRAVEL INVOICE WK 37,BD1 3AZ,Admin
Food Standards Agency,Food Standards Agency,25/09/2015,Subsistence UK,Legal Branch A & Investigations,Redfern Travel Ltd,433,147.45,REDFERN TRAVEL INVOICE WK 38,BD1 3AZ,Admin
Food Standards Agency,Food Standards Agency,21/09/2015,Travel UK ,Area 5 South West England - Cluster 51,Redfern Travel Ltd,401,147.28,REDFERN TRAVEL INVOICE WK 37,BD1 3AZ,Programme
Food Standards Agency,Food Standards Agency,21/09/2015,Travel UK ,Comms Directors Office,Redfern Travel Ltd,401,141.85,REDFERN TRAVEL INVOICE WK 37,BD1 3AZ,Admin
Food Standards Agency,Food Standards Agency,21/09/2015,Subsistence UK,Area 2 Wales - Cluster 22,Redfern Travel Ltd,401,141.44,REDFERN TRAVEL INVOICE WK 37,BD1 3AZ,Programme
Food Standards Agency,Food Standards Agency,25/09/2015,Subsistence UK,Additives,Redfern Travel Ltd,433,140.91,REDFERN TRAVEL INVOICE WK 38,BD1 3AZ,Admin
Food Standards Agency,Food Standards Agency,25/09/2015,Subsistence UK,Organisational Development,Redfern Travel Ltd,433,133.09,REDFERN TRAVEL INVOICE WK 38,BD1 3AZ,Admin
Food Standards Agency,Food Standards Agency,25/09/2015,Subsistence EC,Additives,Redfern Travel Ltd,433,126.07,REDFERN TRAVEL INVOICE WK 38,BD1 3AZ,Admin
Food Standards Agency,Food Standards Agency,25/09/2015,Travel UK ,Area 4 North East England - Cluster 46,Redfern Travel Ltd,433,120.17,REDFERN TRAVEL INVOICE WK 38,BD1 3AZ,Programme
Food Standards Agency,Food Standards Agency,25/09/2015,Travel UK ,Allergens,Redfern Travel Ltd,433,119.18,REDFERN TRAVEL INVOICE WK 38,BD1 3AZ,Admin
Food Standards Agency,Food Standards Agency,21/09/2015,Travel UK ,Legal Branch A & Investigations,Redfern Travel Ltd,401,118.58,REDFERN TRAVEL INVOICE WK 37,BD1 3AZ,Admin
Food Standards Agency,Food Standards Agency,25/09/2015,Subsistence UK,Comms Directors Office,Redfern Travel Ltd,433,117.45,REDFERN TRAVEL INVOICE WK 38,BD1 3AZ,Admin
Food Standards Agency,Food Standards Agency,21/09/2015,Travel UK ,Information Strategy & Implementation Programme,Redfern Travel Ltd,401,113.8,REDFERN TRAVEL INVOICE WK 37,BD1 3AZ,Admin
Food Standards Agency,Food Standards Agency,25/09/2015,Travel UK ,Area 4 North East England - Cluster 44,Redfern Travel Ltd,433,112.63,REDFERN TRAVEL INVOICE WK 38,BD1 3AZ,Programme
Food Standards Agency,Food Standards Agency,21/09/2015,Travel UK ,Area 6 South East England - Cluster 61,Redfern Travel Ltd,401,110.9,REDFERN TRAVEL INVOICE WK 37,BD1 3AZ,Programme
Food Standards Agency,Food Standards Agency,21/09/2015,Subsistence UK,Area 6 South East England - Cluster 66,Redfern Travel Ltd,401,106.34,REDFERN TRAVEL INVOICE WK 37,BD1 3AZ,Programme
Food Standards Agency,Food Standards Agency,25/09/2015,Subsistence UK,Directorate Support Unit,Redfern Travel Ltd,433,105.53,REDFERN TRAVEL INVOICE WK 38,BD1 3AZ,Admin
Food Standards Agency,Food Standards Agency,21/09/2015,Subsistence UK,Internal Audit,Redfern Travel Ltd,401,102.41,REDFERN TRAVEL INVOICE WK 37,BD1 3AZ,Admin
Food Standards Agency,Food Standards Agency,21/09/2015,Subsistence UK,National Food Crime Unit & Resilience - Prog,Redfern Travel Ltd,401,101,REDFERN TRAVEL INVOICE WK 37,BD1 3AZ,Programme
Food Standards Agency,Food Standards Agency,21/09/2015,Travel UK ,Security & Estates,Redfern Travel Ltd,401,100.04,CONSOLIDATED PAYMENT  - SES TRAVEL WK 37,BD1 3AZ,Admin
Food Standards Agency,Food Standards Agency,25/09/2015,Subsistence UK,Area 5 South West England - Cluster 57,Redfern Travel Ltd,433,99.59,REDFERN TRAVEL INVOICE WK 38,BD1 3AZ,Programme
Food Standards Agency,Food Standards Agency,25/09/2015,Travel UK ,Area 6 South East England - Cluster 65,Redfern Travel Ltd,433,96.45,REDFERN TRAVEL INVOICE WK 38,BD1 3AZ,Programme
Food Standards Agency,Food Standards Agency,23/09/2015,Fixed Assets Additions,Security & Estates,Interior Motives International Limited,9584,96,REFURB OF 3RD FLR MTG RM - PO422579 COSTS RECHARGED TO GDS,EC4R 2RA,Capital
Food Standards Agency,Food Standards Agency,21/09/2015,Subsistence UK,Comms Directors Office,Redfern Travel Ltd,401,95.97,REDFERN TRAVEL INVOICE WK 37,BD1 3AZ,Admin
Food Standards Agency,Food Standards Agency,21/09/2015,Subsistence UK,Procurement,Redfern Travel Ltd,401,95.97,REDFERN TRAVEL INVOICE WK 37,BD1 3AZ,Admin
Food Standards Agency,Food Standards Agency,21/09/2015,Subsistence UK,Information Strategy & Implementation Programme,Redfern Travel Ltd,401,93.96,REDFERN TRAVEL INVOICE WK 37,BD1 3AZ,Admin
Food Standards Agency,Food Standards Agency,25/09/2015,Subsistence UK,Non Meat Field Ops,Redfern Travel Ltd,433,91.29,REDFERN TRAVEL INVOICE WK 38,BD1 3AZ,Programme
Food Standards Agency,Food Standards Agency,25/09/2015,Subsistence UK,Finance Director & Branch,Redfern Travel Ltd,433,89.43,REDFERN TRAVEL INVOICE WK 38,BD1 3AZ,Admin
Food Standards Agency,Food Standards Agency,21/09/2015,Subsistence EC,Operations Assurance,Redfern Travel Ltd,401,86.42,REDFERN TRAVEL INVOICE WK 37,BD1 3AZ,Programme
Food Standards Agency,Food Standards Agency,21/09/2015,Travel UK ,Contaminants Policy & Strategy Unit,Redfern Travel Ltd,401,84.47,REDFERN TRAVEL INVOICE WK 37,BD1 3AZ,Admin
Food Standards Agency,Food Standards Agency,25/09/2015,Subsistence UK,Contaminants Policy & Strategy Unit,Redfern Travel Ltd,433,83.8,REDFERN TRAVEL INVOICE WK 38,BD1 3AZ,Admin
Food Standards Agency,Food Standards Agency,21/09/2015,Travel UK ,Area 4 North East England - Cluster 42,Redfern Travel Ltd,401,82.72,REDFERN TRAVEL INVOICE WK 37,BD1 3AZ,Programme
Food Standards Agency,Food Standards Agency,25/09/2015,Travel UK ,Area 5 South West England - Cluster 51,Redfern Travel Ltd,433,80.92,REDFERN TRAVEL INVOICE WK 38,BD1 3AZ,Programme
Food Standards Agency,Food Standards Agency,25/09/2015,Subsistence EC,Operations Assurance,Redfern Travel Ltd,433,80.35,REDFERN TRAVEL INVOICE WK 38,BD1 3AZ,Programme
Food Standards Agency,Food Standards Agency,25/09/2015,Travel UK ,Area 3 North West England - Cluster 34,Redfern Travel Ltd,433,80.29,REDFERN TRAVEL INVOICE WK 38,BD1 3AZ,Programme
Food Standards Agency,Food Standards Agency,25/09/2015,Subsistence UK,National Food Crime Unit & Resilience - Prog,Redfern Travel Ltd,433,79.88,REDFERN TRAVEL INVOICE WK 38,BD1 3AZ,Programme
Food Standards Agency,Food Standards Agency,25/09/2015,Travel UK ,Area 4 North East England - Cluster 47,Redfern Travel Ltd,433,79.8,REDFERN TRAVEL INVOICE WK 38,BD1 3AZ,Programme
Food Standards Agency,Food Standards Agency,21/09/2015,Travel UK ,Area 3 North West England - Cluster 33,Redfern Travel Ltd,401,78.87,REDFERN TRAVEL INVOICE WK 37,BD1 3AZ,Programme
Food Standards Agency,Food Standards Agency,25/09/2015,Subsistence UK,Area 5 South West England - Cluster 54,Redfern Travel Ltd,433,76.86,REDFERN TRAVEL INVOICE WK 38,BD1 3AZ,Programme
Food Standards Agency,Food Standards Agency,21/09/2015,Subsistence UK,Area 6 South East England - Cluster 61,Redfern Travel Ltd,401,76.86,REDFERN TRAVEL INVOICE WK 37,BD1 3AZ,Programme
Food Standards Agency,Food Standards Agency,25/09/2015,Travel UK ,Directorate Support Unit,Redfern Travel Ltd,433,75.88,REDFERN TRAVEL INVOICE WK 38,BD1 3AZ,Admin
Food Standards Agency,Food Standards Agency,02/09/2015,Mobile phone charges,IT Service Delivery,Vodafone Ltd,77231387,73.85,VOADFONE MOBILE CONTRACTS - QUARTERLY CHARGES,RG14 5FF,Admin
Food Standards Agency,Food Standards Agency,02/09/2015,Mobile phone charges,IT Service Delivery,Vodafone Ltd,77231387,73.85,VOADFONE MOBILE CONTRACTS - QUARTERLY CHARGES,RG14 5FF,Admin
Food Standards Agency,Food Standards Agency,21/09/2015,Travel UK ,Area 6 South East England - Cluster 66,Redfern Travel Ltd,401,73.44,REDFERN TRAVEL INVOICE WK 37,BD1 3AZ,Programme
Food Standards Agency,Food Standards Agency,25/09/2015,Travel UK ,EU Regulatory Reform Branch,Redfern Travel Ltd,433,72.96,REDFERN TRAVEL INVOICE WK 38,BD1 3AZ,Admin
Food Standards Agency,Food Standards Agency,21/09/2015,Travel UK ,Food Production Branch,Redfern Travel Ltd,401,72.46,REDFERN TRAVEL INVOICE WK 37,BD1 3AZ,Admin
Food Standards Agency,Food Standards Agency,21/09/2015,Subsistence UK,Legal Branch A & Investigations,Redfern Travel Ltd,401,70.82,REDFERN TRAVEL INVOICE WK 37,BD1 3AZ,Admin
Food Standards Agency,Food Standards Agency,25/09/2015,Travel UK ,Area 4 North East England - Cluster 45,Redfern Travel Ltd,433,69.15,REDFERN TRAVEL INVOICE WK 38,BD1 3AZ,Programme
Food Standards Agency,Food Standards Agency,23/09/2015,Fixed Assets Additions,Security & Estates,Interior Motives International Limited,9584,69,REFURB OF 3RD FLR MTG RM - PO422579 COSTS RECHARGED TO GDS,EC4R 2RA,Capital
Food Standards Agency,Food Standards Agency,21/09/2015,Travel UK ,Hygiene & Microbiology Division HoD,Redfern Travel Ltd,401,66.61,REDFERN TRAVEL INVOICE WK 37,BD1 3AZ,Admin
Food Standards Agency,Food Standards Agency,21/09/2015,Travel UK ,Operations Assurance - Admin,Redfern Travel Ltd,401,61.93,REDFERN TRAVEL INVOICE WK 37,BD1 3AZ,Admin
Food Standards Agency,Food Standards Agency,21/09/2015,Subsistence UK,Area 4 North East England - Cluster 46,Redfern Travel Ltd,401,60.76,REDFERN TRAVEL INVOICE WK 37,BD1 3AZ,Programme
Food Standards Agency,Food Standards Agency,25/09/2015,Subsistence UK,Chemical Risk Assessment Unit,Redfern Travel Ltd,433,59.53,REDFERN TRAVEL INVOICE WK 38,BD1 3AZ,Admin
Food Standards Agency,Food Standards Agency,21/09/2015,Travel UK ,Area 5 South West England - Cluster 52,Redfern Travel Ltd,401,56.23,REDFERN TRAVEL INVOICE WK 37,BD1 3AZ,Programme
Food Standards Agency,Food Standards Agency,21/09/2015,Travel UK ,Area 6 South East England - Cluster 64,Redfern Travel Ltd,401,53.94,REDFERN TRAVEL INVOICE WK 37,BD1 3AZ,Programme
Food Standards Agency,Food Standards Agency,25/09/2015,Travel UK ,Area 4 North East England - Cluster 48,Redfern Travel Ltd,433,51.99,REDFERN TRAVEL INVOICE WK 38,BD1 3AZ,Programme
Food Standards Agency,Food Standards Agency,21/09/2015,Travel UK ,Microbiological Food Safety Branch,Redfern Travel Ltd,401,50.12,REDFERN TRAVEL INVOICE WK 37,BD1 3AZ,Admin
Food Standards Agency,Food Standards Agency,21/09/2015,Travel UK ,Area 6 South East England - Cluster 65,Redfern Travel Ltd,401,47.25,REDFERN TRAVEL INVOICE WK 37,BD1 3AZ,Programme
Food Standards Agency,Food Standards Agency,21/09/2015,Subsistence UK,IT Information & Knowledge Management,Redfern Travel Ltd,401,45.12,REDFERN TRAVEL INVOICE WK 37,BD1 3AZ,Admin
Food Standards Agency,Food Standards Agency,25/09/2015,Subsistence UK,Area 2 Wales - Cluster 23,Redfern Travel Ltd,433,43.22,REDFERN TRAVEL INVOICE WK 38,BD1 3AZ,Programme
Food Standards Agency,Food Standards Agency,21/09/2015,Travel UK ,Area 5 South West England - Cluster 54,Redfern Travel Ltd,401,41.11,REDFERN TRAVEL INVOICE WK 37,BD1 3AZ,Programme
Food Standards Agency,Food Standards Agency,21/09/2015,Subsistence UK,Area 2 Wales - Cluster 23,Redfern Travel Ltd,401,40.64,REDFERN TRAVEL INVOICE WK 37,BD1 3AZ,Programme
Food Standards Agency,Food Standards Agency,25/09/2015,Subsistence UK,Area 3 North West England - Cluster 34,Redfern Travel Ltd,433,40.64,REDFERN TRAVEL INVOICE WK 38,BD1 3AZ,Programme
Food Standards Agency,Food Standards Agency,25/09/2015,Subsistence UK,Area 6 South East England - Cluster 61,Redfern Travel Ltd,433,40.64,REDFERN TRAVEL INVOICE WK 38,BD1 3AZ,Programme
Food Standards Agency,Food Standards Agency,21/09/2015,Subsistence UK,Area 6 South East England - Cluster 64,Redfern Travel Ltd,401,40.64,REDFERN TRAVEL INVOICE WK 37,BD1 3AZ,Programme
Food Standards Agency,Food Standards Agency,25/09/2015,Travel UK ,Area 6 South East England - Cluster 66,Redfern Travel Ltd,433,35.15,REDFERN TRAVEL INVOICE WK 38,BD1 3AZ,Programme
Food Standards Agency,Food Standards Agency,21/09/2015,Travel UK ,Area 4 North East England - Cluster 46,Redfern Travel Ltd,401,31.16,REDFERN TRAVEL INVOICE WK 37,BD1 3AZ,Programme
Food Standards Agency,Food Standards Agency,25/09/2015,Travel UK ,Contaminants HoD,Redfern Travel Ltd,433,25.62,REDFERN TRAVEL INVOICE WK 38,BD1 3AZ,Admin
Food Standards Agency,Food Standards Agency,25/09/2015,Travel UK ,Area 3 North West England - Cluster 33,Redfern Travel Ltd,433,22.96,REDFERN TRAVEL INVOICE WK 38,BD1 3AZ,Programme
Food Standards Agency,Food Standards Agency,25/09/2015,Travel UK ,Procurement,Redfern Travel Ltd,433,21.72,REDFERN TRAVEL INVOICE WK 38,BD1 3AZ,Admin
Food Standards Agency,Food Standards Agency,21/09/2015,Travel UK ,Area 4 North East England - Cluster 47,Redfern Travel Ltd,401,20.81,REDFERN TRAVEL INVOICE WK 37,BD1 3AZ,Programme
Food Standards Agency,Food Standards Agency,21/09/2015,Travel UK ,Area 5 South West England - Cluster 53,Redfern Travel Ltd,401,20.52,REDFERN TRAVEL INVOICE WK 37,BD1 3AZ,Programme
Food Standards Agency,Food Standards Agency,25/09/2015,Travel UK ,National Food Crime Unit & Resilience - Prog,Redfern Travel Ltd,433,18.57,REDFERN TRAVEL INVOICE WK 38,BD1 3AZ,Programme
Food Standards Agency,Food Standards Agency,21/09/2015,Travel UK ,National Food Crime Unit & Resilience - Prog,Redfern Travel Ltd,401,14.85,REDFERN TRAVEL INVOICE WK 37,BD1 3AZ,Programme
Food Standards Agency,Food Standards Agency,02/09/2015,Mobile phone charges,IT Service Delivery,Vodafone Ltd,77231387,14.77,VOADFONE MOBILE CONTRACTS - QUARTERLY CHARGES,RG14 5FF,Admin
Food Standards Agency,Food Standards Agency,25/09/2015,Subsistence UK,Chair & Deputy Chair,Redfern Travel Ltd,433,11.28,REDFERN TRAVEL INVOICE WK 38,BD1 3AZ,Admin
Food Standards Agency,Food Standards Agency,25/09/2015,Subsistence EC,Contaminants HoD,Redfern Travel Ltd,433,2.82,REDFERN TRAVEL INVOICE WK 38,BD1 3AZ,Admin
Food Standards Agency,Food Standards Agency,25/09/2015,Subsistence EC,Regulatory & International,Redfern Travel Ltd,433,2.82,REDFERN TRAVEL INVOICE WK 38,BD1 3AZ,Admin
Food Standards Agency,Food Standards Agency,21/09/2015,Subsistence UK,Animal Feed Branch,Redfern Travel Ltd,401,1.41,REDFERN TRAVEL INVOICE WK 37,BD1 3AZ,Admin
Food Standards Agency,Food Standards Agency,25/09/2015,Subsistence EC,Legal Branch A & Investigations,Redfern Travel Ltd,433,1.41,REDFERN TRAVEL INVOICE WK 38,BD1 3AZ,Admin
Food Standards Agency,Food Standards Agency,21/09/2015,Subsistence EC,Contaminants HoD,Redfern Travel Ltd,401,1.41,REDFERN TRAVEL INVOICE WK 37,BD1 3AZ,Admin
Food Standards Agency,Food Standards Agency,25/09/2015,Subsistence EC,Contaminants Policy & Strategy Unit,Redfern Travel Ltd,433,1.41,REDFERN TRAVEL INVOICE WK 38,BD1 3AZ,Admin
Food Standards Agency,Food Standards Agency,25/09/2015,Subsistence EC,EU Regulatory Reform Branch,Redfern Travel Ltd,433,1.41,REDFERN TRAVEL INVOICE WK 38,BD1 3AZ,Admin
Food Standards Agency,Food Standards Agency,21/09/2015,Subsistence EC,Additives,Redfern Travel Ltd,401,1.41,REDFERN TRAVEL INVOICE WK 37,BD1 3AZ,Admin
Food Standards Agency,Food Standards Agency,25/09/2015,Subsistence EC,Directorate Support Unit,Redfern Travel Ltd,433,1.41,REDFERN TRAVEL INVOICE WK 38,BD1 3AZ,Admin
Food Standards Agency,Food Standards Agency,02/09/2015,Mobile phone charges,IT Service Delivery,Vodafone Ltd,77231387,-14.77,VOADFONE MOBILE CONTRACTS - QUARTERLY CHARGES,RG14 5FF,Admin
Food Standards Agency,Food Standards Agency,25/09/2015,Travel UK ,Animal Feed Branch,Redfern Travel Ltd,433,-25.22,REDFERN TRAVEL INVOICE WK 38,BD1 3AZ,Admin
Food Standards Agency,Food Standards Agency,25/09/2015,Travel UK ,Chief Executive & Private Office,Redfern Travel Ltd,433,-66.28,REDFERN TRAVEL INVOICE WK 38,BD1 3AZ,Admin
Food Standards Agency,Food Standards Agency,02/09/2015,Mobile phone charges,IT Service Delivery,Vodafone Ltd,77231387,-73.85,VOADFONE MOBILE CONTRACTS - QUARTERLY CHARGES,RG14 5FF,Admin
Food Standards Agency,Food Standards Agency,25/09/2015,Subsistence UK,Security & Estates,Redfern Travel Ltd,433,-131.69,CONSOLIDATED PAYMENT - SES SUBSISTENCE COSTS WK 38,BD1 3AZ,Admin
Food Standards Agency,Food Standards Agency,03/09/2015,Project Programme expenditure,Organisational Development,National Centre For Social Research,52142,"-15,442.00","PO 420942, CREDIT NOTE FOR REF INV NO- 51958, 52007,52122",EC1V 0AX,Programme
Food Standards Agency,Food Standards Agency,03/09/2015,Project Programme expenditure,Organisational Development,National Centre For Social Research,52142,"-15,442.00","PO 420942, CREDIT NOTE FOR REF INV NO- 51958, 52007,52122",EC1V 0AX,Programme
Food Standards Agency,Food Standards Agency,03/09/2015,Project Programme expenditure,Organisational Development,National Centre For Social Research,52142,"-15,442.00","PO 420942, CREDIT NOTE FOR REF INV NO- 51958, 52007,52122",EC1V 0AX,Programme
"Date Run: 04-NOV-15 04.28.54 PM --- Company Code : '17' , Payment Start Date : '01-SEP-2015' , Payment End Date : '30-SEP-2015'",,,,,,,,,,
